fUST/lending_fUST_20251230
["ID","MTS","AMOUNT","RATE_DAILY","PERIOD"]
[400083721,1767076245065,-169.532124,0.000335,31]
[400083722,1767076245075,-160.0,0.00033507,61]
[400083723,1767076245084,-1000.0,0.00033516,30]
[400083724,1767076245094,-1000.0,0.00033516,30]
[400083725,1767076245103,-1000.0,0.00033516,30]
[400083726,1767076245113,-715.0,0.00033516,30]
[400083727,1767076245122,-985.62,0.00033698,35]
[400083728,1767076245131,-250.0,0.00033699,5]
[400083729,1767076245142,-10907.6,0.000337,10]
[400083730,1767076245152,-416.0,0.00033719,2]
[400083731,1767076245161,-416.0,0.00033719,2]
[400083732,1767076245170,-641.83651575,0.00033806,2]
[400083733,1767076245179,-250.64950539,0.00033859,2]
[400083734,1767076245189,-293200.27724999,0.00033898,2]
[400083735,1767076245199,-1055.258506,0.00033898,28]
[400083736,1767076245209,-1055.258506,0.00033898,28]
[400083737,1767076245219,-1055.258506,0.00033898,28]
[400083738,1767076245228,-1055.258506,0.00033898,28]
[400083739,1767076245237,-13751.15465079,0.00033899,2]
[400083740,1767076245246,-3168.52426512,0.00033899,2]
[400083741,1767076245255,-226.93462896,0.000339,120]
[400083742,1767076245265,-255.33915808,0.000339,120]
[400083743,1767076245276,-197.73888443,0.000339,120]
[400083744,1767076245286,-249.99724702,0.000339,120]
[400083745,1767076245295,-220.14203589,0.000339,120]
[400083746,1767076245305,-207.41822239,0.000339,120]
[400083747,1767076245314,-242.97501016,0.000339,120]
[400083748,1767076245323,-1388.90813834,0.000339,120]
[400083749,1767076245332,-1500.0,0.00033973,5]
[400083750,1767076245341,-350690.09977449,0.00033999,2]
[400083751,1767076245351,-151.0,0.00033999,31]
[400083752,1767076245361,-151.0,0.00033999,31]
[400083753,1767076245371,-151.0,0.00033999,31]
[400083754,1767076245381,-151.0,0.00033999,31]
[400083755,1767076245391,-151.0,0.00033999,31]
[400083756,1767076245400,-219.903846,0.00033999,31]
[400083757,1767076245410,-186.19554048,0.00034,120]
[400083758,1767076245420,-1032.28132267,0.00034,2]
[400083759,1767076245429,-50000.0,0.00034,14]
[400083760,1767076245439,-1367.76,0.00034,30]
[400083761,1767076245448,-1016.0,0.00034,7]
[400083762,1767076245457,-985.62,0.00034246,36]
[400083763,1767076245466,-13751.1546507,0.00034289,2]
[400083764,1767076245476,-641.83651575,0.00034321,2]
[400083765,1767076245485,-210.41432282,0.00034408,25]
[400083766,1767076245495,-160.0,0.00034412,5]
[400083767,1767076245504,-21201.1084,0.0003444,30]
[400083769,1767076245514,-737.43404646,0.00034521,5]
[400083771,1767076245523,-350.0,0.00034521,5]
[400083773,1767076245532,-5000.0,0.00034599,15]
[400083774,1767076245541,-152.95,0.000346,2]
[400083777,1767076245550,-5000.0,0.00034649,4]
[400083779,1767076245559,-846.0332312,0.0003465,7]
[400083781,1767076245569,-3380.74879187,0.0003465,7]
[400083782,1767076245578,-336.66989629,0.0003465,7]
[400083783,1767076245588,-1345.33290556,0.0003465,7]
[400083784,1767076245599,-696912.89091778,0.0003465,4]
[400083788,1767076245684,-1292.46301154,0.0003465,4]
[400083790,1767076245698,-2504.64783903,0.0003465,4]
[400083792,1767076245709,-762634.07337685,0.0003465,4]
[400083793,1767076245720,-1181.34538107,0.0003465,4]
[400083794,1767076245731,-729.32018305,0.0003465,4]
[400083799,1767076377931,-202.91993755,0.00012414,2]
[400083800,1767076390899,10000.01,0.00011915,2]
[400083801,1767076390922,10000.01,0.00011915,2]
[400083802,1767076390945,1483.1951898,0.00011915,2]
[400083803,1767076400587,-232.26633695,0.00012329,2]
[400083804,1767076404887,-268.0,0.00012329,2]
[400083809,1767076421889,-90.77366305,0.00012329,2]
[400083810,1767076421910,-173.54633695,0.00012329,2]
[400083811,1767076424596,-318.98366305,0.00012329,2]
[400083812,1767076424620,-128.63440502,0.00012329,2]
[400083813,1767076431711,-281.81559498,0.00012329,2]
[400083814,1767076431734,-149.19806807,0.00012329,2]
[400083815,1767076466756,-192.84193193,0.00012329,2]
[400083816,1767076466778,-285.03,0.00012329,2]
[400083817,1767076466799,-237.53,0.00012329,2]
[400083818,1767076466823,-128.02128795,0.00012329,2]
[400083820,1767076639831,169.943092,5.782e-05,2]
[400083821,1767076640034,169.943092,0.00011565,2]
[400083830,1767076679651,163.84,9.99e-05,2]
[400083831,1767076685926,318.15,0.00012246,2]
[400083832,1767076697005,-176.6,0.00012329,2]
[400083833,1767076697027,-883.03,0.00012329,2]
[400083834,1767076697050,-214.8653201,0.0001234,2]
[400083835,1767076720805,-500.0,0.00012564,2]
[400083836,1767076720828,-283.96766215,0.00012564,2]
[400083837,1767076720850,-500.0,0.00012564,2]
[400083838,1767076720871,-161.59221211,0.00012564,2]
[400083839,1767076720892,-500.0,0.00012564,2]
[400083840,1767076720913,-500.0,0.00012564,2]
[400083841,1767076720934,-500.0,0.00012564,2]
[400083842,1767076720956,-500.0,0.00012564,2]
[400083843,1767076720977,-500.0,0.00012564,2]
[400083844,1767076720999,-500.0,0.00012564,2]
[400083845,1767076721020,-500.0,0.00012564,2]
[400083846,1767076721041,-54.44012574,0.00012564,2]
[400083847,1767076723516,-445.55987426,0.00012564,2]
[400083848,1767076723539,-500.0,0.00012564,2]
[400083849,1767076723564,-236.74237358,0.00012564,2]
[400083850,1767076723587,-500.0,0.00012564,2]
[400083851,1767076723612,-500.0,0.00012564,2]
[400083852,1767076723635,-230.80470606,0.00012564,2]
[400083853,1767076723661,-500.0,0.00012564,2]
[400083854,1767076723682,-500.0,0.00012564,2]
[400083855,1767076723704,-614.12847959,0.00012564,2]
[400083856,1767076723724,-297.0,0.00012564,2]
[400083857,1767076723747,-300.0,0.00012564,2]
[400083858,1767076723768,-375.76456651,0.00012564,2]
[400083859,1767076725348,-175.23543349,0.00012564,2]
[400083860,1767076725371,-4824.76456651,0.00012565,2]
[400083861,1767076754314,-300.0,0.00012564,2]
[400083862,1767076754337,-4700.0,0.00012565,2]
[400083863,1767076756304,-5000.0,0.00012565,2]
[400083864,1767076763427,275.0,0.000287,120]
[400083865,1767076766286,314.1,0.00012285,2]
[400083866,1767076820736,-300.0,0.00012564,2]
[400083867,1767076820759,-598.0,0.00012564,2]
[400083868,1767076820790,-4102.0,0.00012566,2]
[400083869,1767076823830,-5000.0,0.00012566,2]
[400083870,1767076830132,-5000.0,0.00012566,2]
[400083871,1767076836245,-5000.0,0.00012566,2]
[400083872,1767076845674,310.11,0.00012296,2]
[400083873,1767076902980,-300.0,0.00012565,2]
[400083874,1767076903008,-4700.0,0.00012566,2]
[400083875,1767076904826,-5000.0,0.00012566,2]
[400083876,1767076906413,-5000.0,0.00012566,2]
[400083877,1767076907945,-5000.0,0.00012566,2]
[400083878,1767076909245,-5000.0,0.00012566,2]
[400083879,1767076910700,-5000.0,0.00012566,2]
[400083880,1767076912114,-5000.0,0.00012566,2]
[400083881,1767076913489,-5000.0,0.00012566,2]
[400083882,1767076925830,306.16,0.00012264,2]
[400083883,1767076971233,1009.71108793,0.00012465,2]
[400083884,1767076985475,5000.0,0.00012556,2]
[400083885,1767077005147,309.35,0.00012267,2]
[400083886,1767077008435,3064.67891207,0.00012556,2]
[400083887,1767077008462,1935.32108793,0.00012556,2]
[400083888,1767077020269,207.33510635,0.00012465,2]
[400083889,1767077048629,-1200.0,0.00012563,2]
[400083890,1767077048652,-300.0,0.00012563,2]
[400083891,1767077048674,-3500.0,0.00012564,2]
[400083893,1767077051196,-5000.0,0.00012564,2]
[400083894,1767077052367,-5000.0,0.00012564,2]
[400083895,1767077053612,-5000.0,0.00012564,2]
[400083896,1767077054855,-5000.0,0.00012564,2]
[400083897,1767077056289,-5000.0,0.00012564,2]
[400083898,1767077062918,-5000.0,0.00012564,2]
[400083899,1767077064277,-5000.0,0.00012564,2]
[400083900,1767077083934,305.42,0.00012253,2]
[400083903,1767077164493,301.53,0.0001226,2]
[400083934,1767077244739,297.69,0.00012249,2]
[400083935,1767077293976,-300.0,0.00012562,2]
[400083936,1767077294008,-1200.0,0.00012562,2]
[400083937,1767077308984,-241.48450652,0.00012562,2]
[400083938,1767077313010,496.05032784,0.00012562,2]
[400083939,1767077313039,502.38054938,0.00012562,2]
[400083940,1767077313074,500.0,0.00012562,2]
[400083941,1767077313126,500.0,0.00012562,2]
[400083942,1767077313166,500.0,0.00012562,2]
[400083943,1767077313208,500.0,0.00012562,2]
[400083944,1767077313243,500.0,0.00012562,2]
[400083945,1767077313274,500.0,0.00012562,2]
[400083946,1767077313318,500.0,0.00012562,2]
[400083947,1767077313465,500.0,0.00012562,2]
[400083948,1767077313499,500.0,0.00012562,2]
[400083949,1767077313531,500.0,0.00012562,2]
[400083950,1767077313561,500.0,0.00012562,2]
[400083951,1767077313594,500.0,0.00012562,2]
[400083952,1767077313628,500.0,0.00012562,2]
[400083953,1767077313658,500.0,0.00012562,2]
[400083954,1767077313686,500.0,0.00012562,2]
[400083955,1767077313718,500.0,0.00012562,2]
[400083956,1767077313746,500.0,0.00012562,2]
[400083957,1767077313774,18.61010974,0.00012562,2]
[400083958,1767077313797,481.38989026,0.00012562,2]
[400083959,1767077313825,500.0,0.00012562,2]
[400083960,1767077313853,500.0,0.00012562,2]
[400083961,1767077313885,500.0,0.00012562,2]
[400083962,1767077313921,500.0,0.00012562,2]
[400083963,1767077313954,500.0,0.00012562,2]
[400083964,1767077313988,500.0,0.00012562,2]
[400083965,1767077314019,500.0,0.00012562,2]
[400083966,1767077314057,332.17735849,0.00012562,2]
[400083967,1767077314090,417.71630922,0.00012562,2]
[400083968,1767077314119,497.67877802,0.00012562,2]
[400083969,1767077314147,500.0,0.00012562,2]
[400083970,1767077314179,500.0,0.00012562,2]
[400083971,1767077314215,348.05861179,0.00012562,2]
[400083972,1767077314243,500.0,0.00012562,2]
[400083973,1767077314283,500.0,0.00012562,2]
[400083974,1767077314325,500.0,0.00012562,2]
[400083975,1767077314365,500.0,0.00012562,2]
[400083976,1767077314399,500.0,0.00012562,2]
[400083977,1767077314429,500.0,0.00012562,2]
[400083978,1767077314462,422.98905222,0.00012562,2]
[400083979,1767077314487,77.01094778,0.00012562,2]
[400083980,1767077314516,500.0,0.00012562,2]
[400083981,1767077314550,500.0,0.00012562,2]
[400083982,1767077314579,500.0,0.00012562,2]
[400083983,1767077314610,500.0,0.00012562,2]
[400083984,1767077314640,500.0,0.00012562,2]
[400083985,1767077314670,500.0,0.00012562,2]
[400083986,1767077314703,500.0,0.00012562,2]
[400083987,1767077314734,500.0,0.00012562,2]
[400083988,1767077314764,500.0,0.00012562,2]
[400083989,1767077314794,500.0,0.00012562,2]
[400083990,1767077314823,500.0,0.00012562,2]
[400083991,1767077314852,500.0,0.00012562,2]
[400083992,1767077314882,500.0,0.00012562,2]
[400083993,1767077314912,500.0,0.00012562,2]
[400083994,1767077314949,500.0,0.00012562,2]
[400083995,1767077314981,500.0,0.00012562,2]
[400083996,1767077315013,500.0,0.00012562,2]
[400083997,1767077315044,500.0,0.00012562,2]
[400083998,1767077315077,500.0,0.00012562,2]
[400083999,1767077316344,422.99905222,0.00012562,2]
[400084000,1767077316369,77.00094778,0.00012562,2]
[400084001,1767077324098,314.91,0.00012238,2]
[400084002,1767077339545,358.67636335,0.00012562,2]
[400084003,1767077342470,300.0,0.00012562,2]
[400084004,1767077347222,9341.33363665,0.00012464,2]
[400084005,1767077347250,10000.01,0.00012464,2]
[400084006,1767077347278,10000.01,0.00012464,2]
[400084007,1767077347305,10000.01,0.00012464,2]
[400084008,1767077347333,10000.01,0.00012464,2]
[400084019,1767077432068,-457.22,0.00012275,2]
[400084020,1767077432078,-526.8,0.00012329,2]
[400084021,1767077432088,-252.32218585,0.00012329,2]
[400084085,1767077438208,-186.67781415,0.00012329,2]
[400084087,1767077438218,-365.84,0.00012329,2]
[400084089,1767077438227,-304.86,0.00012329,2]
[400084091,1767077438237,-254.05,0.00012329,2]
[400084093,1767077438247,-211.71,0.00012329,2]
[400084095,1767077438259,-176.43,0.00012329,2]
[400084097,1767077438269,-882.15,0.00012329,2]
[400084099,1767077438279,-536.26853952,0.00012329,2]
[400084100,1767077438293,-57.73146048,0.00012329,2]
[400084101,1767077438303,-500.0,0.00012462,2]
[400084103,1767077438313,-314.68637317,0.00012462,2]
[400084105,1767077438323,-500.0,0.00012462,2]
[400084107,1767077438332,-500.0,0.00012462,2]
[400084109,1767077438343,-500.0,0.00012462,2]
[400084111,1767077438353,-500.0,0.00012462,2]
[400084113,1767077438362,-500.0,0.00012462,2]
[400084115,1767077438373,-500.0,0.00012462,2]
[400084116,1767077438382,-500.03702134,0.00012462,2]
[400084117,1767077438392,-500.0,0.00012462,2]
[400084118,1767077438401,-456.27207274,0.00012462,2]
[400084119,1767077438410,-500.0,0.00012462,2]
[400084120,1767077438421,-500.0,0.00012462,2]
[400084121,1767077438430,-500.0,0.00012462,2]
[400084122,1767077438440,-500.0,0.00012462,2]
[400084123,1767077438450,-584.97880578,0.00012462,2]
[400084124,1767077438460,-500.0,0.00012462,2]
[400084125,1767077438469,-500.0,0.00012462,2]
[400084126,1767077438480,-300.0,0.00012463,2]
[400084127,1767077438489,-300.0,0.00012463,2]
[400084128,1767077438500,-300.0,0.00012463,2]
[400084129,1767077438510,-300.0,0.00012463,2]
[400084130,1767077438519,-20566.70611137,0.00012463,2]
[400084131,1767077438530,-27756.89780499,0.00012464,2]
[400084132,1767077438539,-500.0,0.00012561,2]
[400084133,1767077438549,-500.0,0.00012561,2]
[400084134,1767077438559,-434.08008784,0.00012561,2]
[400084135,1767077438569,-179.66389767,0.00012561,2]
[400084136,1767077438579,-500.0,0.00012561,2]
[400084137,1767077438588,-500.0,0.00012561,2]
[400084138,1767077438597,-228.23684803,0.00012561,2]
[400084139,1767077438607,-500.0,0.00012561,2]
[400084140,1767077438616,-500.0,0.00012561,2]
[400084141,1767077438626,-500.0,0.00012561,2]
[400084142,1767077438635,-500.0,0.00012561,2]
[400084143,1767077438645,-500.0,0.00012561,2]
[400084144,1767077438654,-500.0,0.00012561,2]
[400084145,1767077438664,-500.0,0.00012561,2]
[400084146,1767077438673,-500.0,0.00012561,2]
[400084147,1767077438683,-500.0,0.00012561,2]
[400084148,1767077438693,-500.0,0.00012561,2]
[400084149,1767077438703,-500.0,0.00012561,2]
[400084150,1767077438713,-500.0,0.00012565,2]
[400084151,1767077438723,-153.88514916,0.00012565,2]
[400084152,1767077438733,-300.0,0.00012816,2]
[400084153,1767077438743,-300.0,0.00012816,2]
[400084154,1767077438753,-300.0,0.00012816,2]
[400084155,1767077438762,-300.0,0.00012816,2]
[400084156,1767077438772,-300.0,0.00012816,2]
[400084157,1767077438782,-300.0,0.00012816,2]
[400084158,1767077438792,-300.0,0.00012816,2]
[400084159,1767077438802,-300.0,0.00012816,2]
[400084160,1767077438812,-300.0,0.00012816,2]
[400084161,1767077438822,-300.0,0.00012816,2]
[400084162,1767077438832,-300.0,0.00012816,2]
[400084164,1767077438841,-300.0,0.00012816,2]
[400084165,1767077438851,-300.0,0.00012816,2]
[400084167,1767077438861,-300.0,0.00012816,2]
[400084168,1767077438871,-300.0,0.00012816,2]
[400084169,1767077438881,-600.0,0.00012816,2]
[400084170,1767077438891,-500.0,0.00012839,2]
[400084171,1767077438900,-914.44,0.0001286,2]
[400084172,1767077438910,-988.06,0.00013,2]
[400084173,1767077438919,-500.0,0.00013113,2]
[400084174,1767077438928,-500.0,0.00013273,2]
[400084175,1767077438938,-500.0,0.00013273,2]
[400084176,1767077438948,-500.0,0.00013273,2]
[400084177,1767077438957,-500.0,0.00013273,2]
[400084178,1767077438971,-500.0,0.00013273,2]
[400084179,1767077438981,-500.0,0.00013273,2]
[400084180,1767077438991,-519.80046235,0.00013273,2]
[400084181,1767077439001,-500.61848395,0.00013273,2]
[400084182,1767077439013,-500.0,0.00013273,2]
[400084183,1767077439022,-500.0,0.00013273,2]
[400084184,1767077439085,-500.0,0.00013273,2]
[400084185,1767077439095,-500.0,0.00013273,2]
[400084186,1767077439104,-500.0,0.00013273,2]
[400084187,1767077439114,-500.0,0.00013273,2]
[400084188,1767077439123,-283.15409111,0.00013273,2]
[400084189,1767077439133,-500.0,0.00013273,2]
[400084190,1767077439143,-500.0,0.00013273,2]
[400084191,1767077439152,-500.0,0.00013273,2]
[400084192,1767077439162,-500.0,0.00013273,2]
[400084193,1767077439171,-500.0,0.00013273,2]
[400084194,1767077439182,-500.0,0.00013273,2]
[400084195,1767077439191,-500.0,0.00013273,2]
[400084196,1767077439201,-465.37686128,0.00013273,2]
[400084197,1767077439211,-500.0,0.00013273,2]
[400084198,1767077439221,-500.0,0.00013273,2]
[400084199,1767077439230,-500.0,0.00013273,2]
[400084200,1767077439240,-500.0,0.00013273,2]
[400084201,1767077439250,-500.0,0.00013273,2]
[400084202,1767077439261,-500.0,0.00013273,2]
[400084203,1767077439271,-500.0,0.00013273,2]
[400084204,1767077439280,-500.0,0.00013273,2]
[400084205,1767077439290,-500.0,0.00013273,2]
[400084206,1767077439299,-535.90784509,0.00013273,2]
[400084207,1767077439309,-500.0,0.00013273,2]
[400084208,1767077439318,-500.0,0.00013273,2]
[400084209,1767077439327,-500.0,0.00013273,2]
[400084210,1767077439337,-500.0,0.00013273,2]
[400084211,1767077439348,-500.0,0.00013273,2]
[400084212,1767077439358,-500.0,0.00013273,2]
[400084213,1767077439367,-171.46724049,0.00013273,2]
[400084214,1767077439376,-500.0,0.00013273,2]
[400084215,1767077439386,-500.0,0.00013273,2]
[400084216,1767077439395,-500.0,0.00013273,2]
[400084217,1767077439405,-500.8149509,0.00013273,2]
[400084218,1767077439414,-500.0,0.00013273,2]
[400084219,1767077439423,-500.0,0.00013273,2]
[400084220,1767077439432,-459.70529653,0.00013273,2]
[400084221,1767077439442,-500.0,0.00013273,2]
[400084222,1767077439451,-500.0,0.00013273,2]
[400084223,1767077439461,-497.70580464,0.00013273,2]
[400084224,1767077439471,-500.0,0.00013273,2]
[400084225,1767077439480,-500.0,0.00013273,2]
[400084226,1767077439491,-268.5150951,0.00013273,2]
[400084227,1767077439499,-500.0,0.00013273,2]
[400084228,1767077439509,-500.0,0.00013273,2]
[400084229,1767077439518,-314.31017879,0.00013313,2]
[400084230,1767077439527,-1371.67,0.00013444,2]
[400084231,1767077439537,-172.29334097,0.00013496,2]
[400084232,1767077439546,-300.0,0.00013673,2]
[400084233,1767077439554,-420.0,0.00013675,2]
[400084234,1767077439563,-420.0,0.00013675,2]
[400084235,1767077439573,-420.0,0.00013675,2]
[400084236,1767077439582,-175.88826675,0.00013698,2]
[400084237,1767077439592,-308.96684295,0.00013698,2]
[400084238,1767077439601,-500.0,0.00013698,2]
[400084239,1767077439611,-500.0,0.00013698,2]
[400084240,1767077439621,-500.0,0.00013698,2]
[400084241,1767077439630,-501.25655426,0.00013698,2]
[400084242,1767077439639,-345.64034279,0.00013698,2]
[400084243,1767077439649,-528.98647481,0.00013698,2]
[400084244,1767077439658,-528.29778119,0.00013698,2]
[400084245,1767077439669,-507.52539763,0.00013698,2]
[400084246,1767077439678,-500.0,0.00013698,2]
[400084247,1767077439688,-500.0,0.00013698,2]
[400084248,1767077439698,-500.0,0.00013698,2]
[400084249,1767077439707,-500.0,0.00013698,2]
[400084250,1767077439717,-526.58347219,0.00013698,2]
[400084251,1767077439727,-462.39716455,0.00013698,2]
[400084253,1767077439738,-569.18570614,0.00013698,2]
[400084254,1767077439747,-500.0,0.00013699,2]
[400084255,1767077439757,-500.30716217,0.00013699,2]
[400084256,1767077439767,-165.01125145,0.00013699,2]
[400084257,1767077439777,-500.0,0.00013699,2]
[400084258,1767077439786,-500.87185466,0.00013699,2]
[400084259,1767077439796,-501.2548896,0.00013699,2]
[400084260,1767077439806,-502.34096453,0.00013699,2]
[400084261,1767077439815,-501.17569243,0.00013699,2]
[400084262,1767077439825,-164.39071824,0.00013699,2]
[400084263,1767077439834,-500.0,0.00013699,2]
[400084264,1767077439844,-343.55118679,0.00013699,2]
[400084265,1767077439854,-500.0,0.00013699,2]
[400084266,1767077439865,-346.40609212,0.00013699,2]
[400084268,1767077439875,-500.29842762,0.00013699,2]
[400084270,1767077439885,-502.56460974,0.00013699,2]
[400084272,1767077439895,-500.87409602,0.00013699,2]
[400084273,1767077439905,-500.0,0.00013699,2]
[400084274,1767077439914,-500.0,0.00013699,2]
[400084275,1767077439923,-500.0,0.00013699,2]
[400084276,1767077439932,-307.55036025,0.00013699,2]
[400084277,1767077439941,-267.37089605,0.00013699,2]
[400084279,1767077439950,-178.05611583,0.00013699,2]
[400084280,1767077439960,-217.02145616,0.00013812,2]
[400084281,1767077439974,-10000.0,0.00013818,2]
[400084282,1767077439984,-502.40861638,0.00013821,2]
[400084283,1767077439993,-1000.0,0.00013821,2]
[400084284,1767077440003,-1000.0,0.00013821,2]
[400084285,1767077440014,-176.8974901,0.00013821,2]
[400084286,1767077440023,-1000.0,0.00013821,2]
[400084287,1767077440033,-1000.0,0.00013821,2]
[400084288,1767077440044,-1001.61542558,0.00013821,2]
[400084289,1767077440053,-1000.0,0.00013821,2]
[400084290,1767077440150,-501.51940967,0.00013821,2]
[400084291,1767077440160,-380.82741627,0.00013821,2]
[400084292,1767077440169,-352.44139576,0.00013821,2]
[400084293,1767077440177,-500.51187945,0.00013821,2]
[400084294,1767077440187,-1000.0,0.00013821,2]
[400084295,1767077440196,-1144.60181432,0.00013821,2]
[400084296,1767077440205,-1000.0,0.00013821,2]
[400084297,1767077440215,-1000.0,0.00013821,2]
[400084298,1767077440224,-1000.0,0.00013821,2]
[400084299,1767077440233,-1000.0,0.00013821,2]
[400084300,1767077440242,-1000.0,0.00013821,2]
[400084301,1767077440252,-1000.0,0.00013821,2]
[400084302,1767077440261,-1001.17509357,0.00013821,2]
[400084303,1767077440270,-500.96078162,0.00013821,2]
[400084304,1767077440279,-1000.0,0.00013821,2]
[400084305,1767077440289,-500.65462418,0.00013821,2]
[400084306,1767077440298,-529.57538183,0.00013821,2]
[400084307,1767077440308,-1000.0,0.00013821,2]
[400084308,1767077440318,-1000.0,0.00013821,2]
[400084309,1767077440328,-1000.0,0.00013821,2]
[400084310,1767077440338,-1000.0,0.00013821,2]
[400084311,1767077440347,-685.90422745,0.00013821,2]
[400084312,1767077440357,-1000.0,0.00013821,2]
[400084313,1767077440366,-1000.0,0.00013821,2]
[400084314,1767077440375,-1000.0,0.00013821,2]
[400084315,1767077440384,-1000.0,0.00013821,2]
[400084316,1767077440393,-493.85504608,0.00013821,2]
[400084318,1767077440403,-1000.0,0.00013821,2]
[400084320,1767077440412,-1000.0,0.00013821,2]
[400084321,1767077440421,-205.15331255,0.00013821,2]
[400084322,1767077440429,-1000.0,0.00013821,2]
[400084323,1767077440438,-1000.0,0.00013821,2]
[400084324,1767077440447,-1000.0,0.00013821,2]
[400084325,1767077440456,-738.68810806,0.00013821,2]
[400084326,1767077440465,-653.38433205,0.00013821,2]
[400084327,1767077440474,-499.76525701,0.00013821,2]
[400084328,1767077440484,-1000.0,0.00013821,2]
[400084329,1767077440493,-160.0,0.00013829,2]
[400084330,1767077440503,-689.17336388,0.00013957,2]
[400084331,1767077440513,-1828.89,0.00014029,2]
[400084332,1767077440522,-720.0,0.00014098,2]
[400084333,1767077440531,-598.4228942,0.00014221,2]
[400084334,1767077440540,-210.0,0.00014241,2]
[400084335,1767077440550,-172.29,0.00014241,2]
[400084336,1767077440559,-304.76708556,0.00014247,2]
[400084337,1767077440568,-1000.90387971,0.00014247,2]
[400084338,1767077440577,-415.49447772,0.00014247,2]
[400084339,1767077440586,-1000.0,0.00014247,2]
[400084340,1767077440596,-1000.6,0.00014247,2]
[400084341,1767077440606,-1000.0,0.00014247,2]
[400084342,1767077440615,-1000.0,0.00014247,2]
[400084343,1767077440624,-304.17357408,0.00014368,2]
[400084344,1767077440635,-152.69291493,0.00014368,2]
[400084345,1767077440644,-632.2043907,0.00014368,2]
[400084346,1767077440653,-1491.58500469,0.00014368,2]
[400084347,1767077440662,-1500.0,0.00014368,2]
[400084348,1767077440671,-841.39237416,0.00014368,2]
[400084349,1767077440681,-659.38531226,0.00014368,2]
[400084350,1767077440690,-543.97913442,0.00014368,2]
[400084351,1767077440699,-1500.0,0.00014368,2]
[400084352,1767077440708,-1500.0,0.00014368,2]
[400084353,1767077440718,-1333.32855576,0.00014368,2]
[400084354,1767077440727,-1500.0,0.00014368,2]
[400084355,1767077440736,-696.6356977,0.00014368,2]
[400084356,1767077440746,-1500.0,0.00014368,2]
[400084357,1767077440755,-1500.0,0.00014368,2]
[400084358,1767077440764,-1500.0,0.00014368,2]
[400084359,1767077440774,-1500.0,0.00014368,2]
[400084360,1767077440783,-1503.02616745,0.00014368,2]
[400084361,1767077440792,-1500.0,0.00014368,2]
[400084362,1767077440802,-1500.0,0.00014368,2]
[400084363,1767077440811,-848.74032619,0.00014368,2]
[400084364,1767077440821,-1500.0,0.00014368,2]
[400084365,1767077440831,-1500.0,0.00014368,2]
[400084366,1767077440841,-1500.0,0.00014368,2]
[400084367,1767077440850,-1003.37205322,0.00014368,2]
[400084368,1767077440859,-1500.0,0.00014368,2]
[400084369,1767077440869,-1500.0,0.00014368,2]
[400084370,1767077440878,-260.0,0.00014377,2]
[400084371,1767077440887,-1550.64006872,0.00014419,2]
[400084372,1767077440897,-514.35380261,0.00014446,2]
[400084373,1767077440907,-284.95171769,0.00014562,2]
[400084374,1767077440916,-734.88459819,0.00014597,2]
[400084375,1767077440925,-2286.11,0.00014613,2]
[400084376,1767077440935,-802.96487012,0.00014795,2]
[400084377,1767077440943,-1500.0,0.00014795,2]
[400084378,1767077440953,-1500.0,0.00014795,2]